{"text_format":"2","workbook":"xlsx","n_sheets":3,"sheets":["newemails","Sheet2","Sheet3"],"not_rendered":{"charts":0,"images":0,"macros":0,"external_links":0,"defined_names":0,"comments":0,"pivot_tables":0},"unopened":[],"bounds":{"document_bytes":16777216,"sheet_cells":100000,"run_cost":"one","rows_first":2000,"rows_last":500,"rows_between":2000,"halvings":0,"cell_chars":16384,"cell_head_chars":4096},"cells_cut":0,"cells_raw":0,"read":"whole","date_system":"1900"}

{"sheet":"newemails","index":0,"n_rows":76,"n_cols":7,"rows_kept":76,"cut":false,"hidden":false,"merged":[]}
["email","theme","Name","last name","password","backup","backup_password"]
["arbitrage@4ecap.com","arb","Arbitrage","4ecap","arb4E2012"]
["bb@4ecap.com",{"$f":"LEFT(A3,LEN(A3)-10)","v":"bb"},"Building Block","4ecap","BB4EC012"]
["bb@4ecap.com","bb.id","Building Block - ID","4ecap","BB4EC012"]
["bb@4ecap.com","bb.option","Building Block - Option","4ecap","BB4EC012"]
["bb@4ecap.com","bb.carry","Building Block - Carry","4ecap","BB4EC012"]
["bb@4ecap.com","bb.race","Building Block - RACE","4ecap","BB4EC012"]
["bb@4ecap.com","bb.marketing","Building Block - Marketing","4ecap","BB4EC012"]
["crm@4ecap.com",{"$f":"LEFT(A9,LEN(A9)-10)","v":"crm"},"CRM","4ecap","crm4E2015"]
["computing@4ecap.com",{"$f":"LEFT(A10,LEN(A10)-10)","v":"computing"},"Computing","4ecap","comp2012"]
["data@4ecap.com",{"$f":"LEFT(A11,LEN(A11)-10)","v":"data"},"Data","4ecap","DATA4E12"]
["etrading@4ecap.com","etrading","E-Trading","4ecap","etrade12","etrading2@4ecap.com","etrading2"]
["etrading2@4ecap.com","etrading2","E-Trading","4ecap","etrading2","etrading2@4ecap.com","etrading2"]
["etrading3@4ecap.com","etrading3","E-Trading","4ecap","eTRD2013","etrading@4ecap.com","etrade12"]
["fundamental@4ecap.com",{"$f":"LEFT(A15,LEN(A15)-10)","v":"fundamental"},"Fundamental","4ecap","fundEC12"]
["fundamental@4ecap.com","macro","Macro","4ecap","fundEC12"]
["fundamental@4ecap.com","grains","Grains","4ecap","fundEC12"]
["fundamental@4ecap.com","energy","Energy","4ecap","fundEC12"]
["fundamental@4ecap.com","precious","Precious Metals","4ecap","fundEC12"]
["fundamental@4ecap.com","base","Base Metals","4ecap","fundEC12"]
["fundamental@4ecap.com","ags","Agriculture","4ecap","fundEC12"]
["fundamental@4ecap.com","ags.grains","Agriculture-Grains","4ecap","fundEC12"]
["fundamental@4ecap.com","ags.livestock","Agriculture-Livestock","4ecap","fundEC12"]
["fundamental@4ecap.com","ags.oilseeds","Agriculture-Oilseeds","4ecap","fundEC12"]
["fundamental@4ecap.com","ags.softs","Agriculture-Softs","4ecap","fundEC12"]
["fundamental@4ecap.com","ags.rubber","Agriculture-Rubber","4ecap","fundEC12"]
["fundamental@4ecap.com","macro.ea","Macro - Economic Activity","4ecap","fundEC12"]
["fundamental@4ecap.com","macro.monetary","Macro - Monetary","4ecap","fundEC12"]
["fundamental@4ecap.com","macro.china","Macro - China","4ecap","fundEC12"]
["indicators@4ecap.com",{"$f":"LEFT(A30,LEN(A30)-10)","v":"indicators"},"Indicators","4ecap","INDICE04","indicators2@4ecap.com","indicators22014"]
["indicators@4ecap.com","indic.energy","Indicators-Energy","4ecap","INDICE04"]
["indicators@4ecap.com","indic.base","Indicators-Base","4ecap","INDICE04"]
["indicators@4ecap.com","indic.precious","Indicators-Precious","4ecap","INDICE04"]
["indicators@4ecap.com","indic.grains.oils.meats","Indicators-Grains Oils Meats","4ecap","INDICE04"]
["indicators@4ecap.com","indic.softs","Indicators-Softs","4ecap","INDICE04"]
["liquidity@4ecap.com","liquidity","Liquidity","4ecap","liq4EC12"]
["marketing@4ecap.com","marketing","Marketing","4ecap","marketingTV2016"]
["portfolio@4ecap.com","port","Portfolio","4ecap","port0412","portfolio2@4ecap.com","portfolio2014"]
["quantitative@4ecap.com","quant","Quantitative Research","4ecap","quant412"]
["relative@4ecap.com","rv","Relative Value","4ecap","rlv4EC12"]
["reports@4ecap.com","reporting","Four Elements Capital","4ecap","re2016SGecap"]
["no-reply@4ecap.com","team.orga","Team-Organisation","4ecap","no-reply"]
["weather@4ecap.com","weather","Weather","4ecap","wth4EC12"]
["wiki@4ecap.com","wiki","Wiki","4ecap","WIKIEC12"]
["automate@4ecap.com","automate","Automate","4ecap","auto4ec11"]
["compliance@4ecap.com","compliance","Compliance","4ecap","co2016ecSGD"]
["database@4ecap.com","database","Database","4ecap","database"]
["execution@4ecap.com","execution","Execution","4ecap","execinbox14","execution2@4ecap.com","exec4Ecap"]
["execution2@4ecap.com","execution2","Execution","4ecap","exec4Ecap","execution@4ecap.com"]
["ialarm2@4ecap.com","ialarm2","iAlarm","4ecap","ialarm2"]
["ialarm3@4ecap.com","itools","iTools","4ecap","ialarm3"]
["ialarm@4ecap.com","ialarm","iAlarm","4ecap","iAlarm"]
["idstrategy@4ecap.com","idstrategy","ID Strategies","4ecap","idstrategy4ecap","idstrategy2@4ecap.com","FOUR2008"]
["imarket@4ecap.com","imarket","iMarket","4ecap","market4ecap"]
["istrategy@4ecap.com","istrategy","iStrategy","4ecap","istrategy"]
["istrategy2@4ecap.com","istrategy2","iStrategy","4ecap"]
["it@4ecap.com","it","IT","4ecap","it4e2011","it2@4ecap.com","4ECAPit2205"]
["it2@4ecap.com","it2","IT","4ECAP","4ECAPit2205","it@4ecap.com","it4e2011"]
["itrade@4ecap.com","itrade","iTrade","4ecap","itrade"]
["itrade@4ecap.com","recon","Reconciliation","4ecap","itrade"]
["monitor@4ecap.com","monitor","Monitor","4ecap"]
["no-reply@4ecap.com","no-reply","Four Elements","4ecap","no-reply"]
["ops@4ecap.com","ops","Operations","4ecap","ops4e2014"]
["orders@4ecap.com","orders","Orders","4ecap","orders"]
["perf@4ecap.com","perf","Performance","4ecap","4ecapperf"]
["mktdata@4ecap.com","mktdata","MarketData","4ecap","mktdata4ecap27102011"]
["java@4ecap.com","java","Java","4ecap","java4ecap2011"]
["outsourcing@4ecap.com","outsourcing","Outsourcing","4ecap","source092012"]
["race@4ecap.com","race","RACE","4ecap","ra2016SGecap"]
["info@4ecap.com","info","Four Elements Capital","4ecap","in2016SGecap"]
["info@4ecap.com","reporting.external","Four Elements Capital","4ecap","in2016SGecap"]
["strategy@4ecap.com","strategy","Strategy","4ecap","str4E2013"]
["no-reply@4ecap.com","icms","Four Elements - Reconciliation","4ecap","no-reply"]
["bb@4ecap.com","option","Options","4ecap","BB4EC012"]
["ialarm@4ecap.com","rfunction","R Function","4ecap","iAlarm"]
["seasonality@4ecap.com","seas","Seasonality","4ecap","4ec2017season2"]

{"sheet":"Sheet2","index":1,"n_rows":0,"n_cols":0,"rows_kept":0,"cut":false,"hidden":false,"merged":[]}

{"sheet":"Sheet3","index":2,"n_rows":0,"n_cols":0,"rows_kept":0,"cut":false,"hidden":false,"merged":[]}